bitfinex/quotes_ETHUSD_20220119
["timestamp","ask_amount","ask_price","bid_price","bid_amount"]
[1642597027581,4.23974773,3121.7,3121.1,0.80101]
[1642597027781,4.23974773,3121.7,3121.0,0.00625266]
[1642597027782,1.3901238,3121.7,3121.0,0.00625266]
[1642597027981,1.3901238,3121.7,3121.2,0.00511581]
[1642597028280,1.3901238,3121.7,3121.0,0.00625266]
[1642597028482,1.3538104,3121.7,3121.0,0.00625266]
[1642597028685,1.2258104,3121.7,3121.0,0.00625266]
[1642597029682,4.36387177,3121.7,3121.0,0.00625266]
[1642597030410,4.36387177,3121.7,3120.9,0.00682108]
[1642597030812,1.60225,3121.6,3120.9,0.00682108]
[1642597031011,0.8011939,3121.4,3120.9,0.00682108]
[1642597031213,0.8011939,3121.4,3120.7,2.19176877]
[1642597031418,0.8011939,3121.4,3120.8,0.0073895]
[1642597031712,0.8011939,3121.4,3120.6,0.00852635]
[1642597031911,4.7441601,3121.4,3120.6,0.00852635]
[1642597032113,0.80117,3121.3,3120.6,0.00852635]
[1642597032313,0.8011744,3121.2,3120.6,0.00852635]
[1642597032517,1.6024616,3121.1,3120.6,0.00852635]
[1642597032714,3.0381012,3121.0,3120.6,0.00852635]
[1642597032917,1.6024616,3121.1,3120.6,0.00852635]
[1642597033115,1.6024616,3121.1,3120.4,0.0096632]
[1642597033564,0.8012115,3121.0,3120.4,0.0096632]
[1642597034368,0.8012115,3121.0,3120.4,0.8108432]
[1642597034766,0.8012115,3121.0,3120.5,0.00909478]
[1642597035166,0.8011456,3121.1,3120.5,0.00909478]
[1642597037820,3.09301376,3121.0,3120.5,0.00909478]
[1642597038021,3.89425566,3121.0,3120.5,0.00909478]
[1642597038320,3.89425566,3121.0,3120.2,0.01080005]
[1642597038520,1.128,3120.9,3120.2,0.01080005]
[1642597038719,0.2883,3120.9,3120.2,0.01080005]
[1642597038921,3.16123278,3120.8,3120.2,0.01080005]
[1642597039122,0.6213,3121.1,3120.2,0.01080005]
[1642597039123,3.55725353,3121.0,3120.2,0.01080005]
[1642597039319,3.85725353,3121.0,3120.2,0.01080005]
[1642597039520,1.6026249,3120.8,3120.0,0.01193689]
[1642597039719,0.128,3120.7,3120.0,0.01193689]
[1642597040118,0.128,3120.8,3120.0,0.01193689]
[1642597040520,0.92934,3120.8,3120.0,0.01193689]
[1642597040723,0.8013395,3120.6,3120.0,0.01193689]
[1642597040922,1.6026995,3120.6,3120.0,0.01193689]
[1642597041171,0.80136,3120.6,3120.0,0.01193689]
[1642597042273,0.8013437,3120.4,3120.0,0.01193689]
[1642597042473,2.7456337,3120.4,3120.0,0.01193689]
[1642597043170,2.7456337,3120.4,3119.7,0.01364216]
[1642597043373,0.8013858,3120.3,3119.7,0.01364216]
[1642597043572,0.8013858,3120.3,3119.9,2.02191865]
[1642597043873,0.8013858,3120.3,3120.0,0.01193689]
[1642597044279,1.6027958,3120.3,3120.0,0.01193689]
[1642597046121,0.8013858,3120.3,3120.0,0.01193689]
[1642597046721,0.8013298,3120.4,3120.0,0.01193689]
[1642597047923,0.80136,3120.6,3120.0,0.01193689]
[1642597048125,1.6026931,3120.6,3120.0,0.01193689]
[1642597049075,0.128,3120.8,3120.0,0.81320689]
[1642597049272,0.428,3120.8,3120.0,0.81320689]
[1642597049480,0.428,3120.8,3120.1,0.01136847]
[1642597049874,0.128,3120.8,3120.0,0.01193689]
[1642597050473,0.8013092,3120.7,3120.0,0.01193689]
[1642597050676,0.128,3120.6,3120.0,0.01193689]
[1642597051277,0.128,3120.8,3120.0,0.01193689]
[1642597051577,0.1603,3120.7,3120.0,0.01193689]
[1642597051777,0.128,3120.6,3120.0,0.01193689]
[1642597052174,0.128,3120.6,3119.8,0.01307374]
[1642597052618,0.80145,3120.5,3119.8,0.01307374]
[1642597052820,0.92941,3120.4,3120.0,2.10048557]
[1642597053020,1.22941,3120.4,3120.0,2.10048557]
[1642597053223,1.22941,3120.4,3120.1,0.01136847]
[1642597053619,0.92941,3120.4,3120.1,0.01136847]
[1642597054020,0.128,3120.4,3120.1,0.01136847]
[1642597054221,0.128,3120.6,3120.1,0.01136847]
[1642597054421,0.8013539,3120.6,3120.1,0.01136847]
[1642597055222,0.9293539,3120.6,3120.1,0.01136847]
[1642597055621,0.8013539,3120.6,3120.1,0.01136847]
[1642597055822,0.128,3120.5,3120.1,0.01136847]
[1642597056469,0.92939,3120.5,3119.7,0.01364216]
[1642597056673,2.5322903,3120.5,3119.7,0.01364216]
[1642597057074,2.5322903,3120.5,3120.0,1.89450215]
[1642597057277,2.4042903,3120.5,3120.0,1.89450215]
[1642597057474,0.80143,3120.4,3120.1,0.01136847]
[1642597059823,2.4042454,3120.4,3120.1,0.01136847]
[1642597060019,2.4042454,3120.4,3119.8,0.01307374]
[1642597060218,1.6028354,3120.4,3119.7,0.01364216]
[1642597060418,0.1282,3120.3,3119.7,0.01364216]
[1642597060619,0.80144,3120.3,3120.1,1.76586671]
[1642597060822,0.2885,3120.4,3120.1,1.76586671]
[1642597060823,0.1282,3120.4,3120.1,1.76586671]
[1642597061022,0.80139,3120.5,3120.2,0.01080005]
[1642597061221,2.72449318,3120.4,3120.2,0.01080005]
[1642597063022,2.72449318,3120.4,3119.9,0.01250532]
[1642597063224,2.72449318,3120.4,3119.7,0.01364216]
[1642597063424,3.52588318,3120.4,3119.7,0.81501216]
[1642597063697,0.80139,3120.4,3119.7,0.81501216]
[1642597063882,0.80139,3120.4,3119.8,0.01307374]
[1642597064083,0.80139,3120.4,3119.9,1.7074443]
[1642597064583,0.80139,3120.4,3119.6,6.29509066]
[1642597064584,1.6028,3120.4,3120.0,0.01193689]
[1642597064787,3.52597319,3120.3,3120.0,0.01193689]
[1642597064993,0.2883,3120.6,3119.7,0.01364216]
[1642597065194,2.7244828,3120.5,3119.7,0.01364216]
[1642597065386,2.7244828,3120.5,3119.7,1.31364216]
[1642597065589,2.7244828,3120.4,3119.7,0.01364216]
[1642597065787,2.7244828,3120.3,3119.8,0.01307374]
[1642597065989,0.1282,3120.2,3120.0,2.205821]
[1642597066488,0.1282,3120.3,3120.1,0.01136847]
[1642597068918,0.4282,3120.3,3120.1,0.01136847]
[1642597069320,2.72455032,3120.2,3120.1,0.01136847]
[1642597070925,2.72455032,3120.2,3120.1,2.88970415]
[1642597071173,2.72455032,3120.3,3120.1,0.01136847]
[1642597071372,4.4228,3120.9,3120.1,0.01136847]
[1642597071576,2.72444429,3120.8,3120.1,0.01136847]
[1642597071974,2.72444429,3120.8,3120.2,0.80126]
[1642597072174,2.72444429,3120.8,3120.2,1.10126]
[1642597072374,2.72444429,3120.8,3120.3,0.01023162]
[1642597074177,2.72444429,3120.8,3120.3,0.81144162]
[1642597074575,2.72444429,3120.8,3120.4,0.0096632]
[1642597077742,1.36159187,3120.7,3120.4,0.0096632]
[1642597077947,2.72444429,3120.6,3119.9,0.01250532]
[1642597078243,2.72444429,3120.6,3119.6,0.01421059]
[1642597078445,1.1603,3120.5,3119.6,0.31421059]
[1642597078670,0.80154,3120.3,3119.6,0.01421059]
[1642597078869,2.404594,3120.3,3119.7,0.01364216]
[1642597079071,2.72444429,3120.2,3119.6,0.01421059]
[1642597079869,3.02444429,3120.2,3119.6,0.01421059]
[1642597080069,2.72444429,3120.1,3119.6,0.01421059]
[1642597080973,2.72444429,3120.0,3119.4,0.01534743]
[1642597081175,2.72444429,3119.9,3119.5,0.80144]
[1642597081475,1.1543,3120.4,3119.6,0.01421059]
[1642597081673,2.72457258,3120.3,3119.6,0.01421059]
[1642597081874,2.72457258,3120.3,3119.6,0.31421059]
[1642597082329,2.72457258,3120.3,3119.7,0.01364216]
[1642597082522,2.72457258,3120.3,3119.7,1.11503216]
[1642597082721,2.72457258,3120.3,3119.7,0.31364216]
[1642597082925,2.72457258,3120.3,3119.8,0.01307374]
[1642597083126,2.72457258,3120.2,3119.8,0.01307374]
[1642597083323,2.72457258,3120.1,3119.8,0.01307374]
[1642597083523,4.8995,3120.8,3119.8,1.61566374]
[1642597083727,2.72433049,3120.7,3120.4,1.28767971]
[1642597084124,2.72433049,3120.7,3120.5,0.00909478]
[1642597084326,2.72433049,3120.9,3120.5,0.00909478]
[1642597084523,2.72433049,3120.8,3120.5,0.30909478]
[1642597084724,0.128,3121.0,3120.5,0.00909478]
[1642597084725,2.72433049,3120.7,3120.5,0.00909478]
[1642597084926,0.128,3121.0,3120.6,0.00852635]
[1642597085123,0.128,3121.0,3120.2,1.10125]
[1642597085124,0.128,3121.0,3120.3,0.01023162]
[1642597085324,0.128,3121.1,3120.3,0.01023162]
[1642597085829,0.128,3121.1,3120.5,2.02810954]
[1642597086066,0.128,3121.1,3120.5,2.32810954]
[1642597086267,0.128,3121.1,3120.6,0.00852635]
[1642597088874,1.2007,3121.2,3120.6,0.00852635]
[1642597089476,1.2007,3121.2,3121.0,1.38629993]
[1642597089677,0.128,3121.5,3121.1,2.57308543]
[1642597089925,0.128,3121.8,3121.0,1.68629993]
[1642597090124,0.128,3121.8,3121.2,0.00511581]
[1642597091930,7.578,3122.4,3121.2,0.43311581]
[1642597092132,7.578,3122.4,3121.3,2.87833568]
[1642597092328,0.00170527,3122.4,3121.9,1.85224933]
[1642597092531,0.00170527,3122.4,3122.0,0.80079]
[1642597096069,2.72496907,3122.4,3122.0,0.80079]
[1642597096270,2.7232638,3122.3,3122.0,0.80079]
[1642597096473,2.7232638,3122.2,3122.0,0.80079]
[1642597096669,2.7232638,3122.1,3122.0,0.80079]
[1642597099225,0.00170527,3122.4,3122.0,0.80079]
[1642597101484,0.00170527,3122.4,3122.1,2.65836643]
[1642597101687,0.00170527,3122.4,3122.2,0.80074]
[1642597101881,0.00170527,3122.4,3122.3,2.99999943]
[1642597102083,0.00170527,3122.4,3122.3,3.99999943]
[1642597102483,0.00170527,3122.4,3122.3,7.24999943]
[1642597103886,0.00170527,3122.4,3122.3,3.97328943]
[1642597107929,0.00170527,3122.4,3122.3,4.10128943]
[1642597108129,0.00170527,3122.4,3122.3,3.97328943]
[1642597109275,0.00170527,3122.4,3122.3,8.02328943]
[1642597110278,2.978,3123.4,3123.3,1.36390318]
[1642597110478,2.85,3123.4,3123.3,1.36390318]
[1642597110677,2.85,3123.4,3123.3,3.54472739]
[1642597111779,2.85,3123.4,3123.3,4.34515739]
[1642597112178,0.128,3124.1,3123.3,4.34515739]
[1642597112627,0.00909478,3124.0,3123.3,4.34515739]
[1642597112826,0.128,3123.9,3123.3,4.34515739]
[1642597113026,0.13652635,3123.9,3123.3,4.34515739]
[1642597113226,0.00795793,3123.8,3123.3,4.34515739]
[1642597113427,0.128,3123.7,3123.3,4.34515739]
[1642597113626,0.13538951,3123.7,3123.3,4.34515739]
[1642597113827,0.00682108,3123.6,3123.3,4.34515739]
[1642597114028,0.00682108,3123.6,3123.3,2.98125421]
[1642597114228,0.00625266,3123.5,3123.4,2.5787585]
[1642597114427,0.00625266,3123.5,3123.3,2.98125421]
[1642597114830,0.00568424,3123.4,3123.3,2.98125421]
[1642597117472,0.00568424,3123.4,3123.3,0.3]
[1642597117675,0.00568424,3123.4,3122.8,4.0442]
[1642597117873,0.00568424,3123.4,3122.8,3.6162]
[1642597118073,0.13311581,3123.3,3122.8,3.6162]
[1642597118272,0.13311581,3123.3,3122.8,3.9162]
[1642597118473,0.00454739,3123.2,3122.8,3.9162]
[1642597118874,0.00397896,3123.1,3122.8,3.9162]
[1642597119274,0.00341054,3123.0,3122.8,3.9162]
[1642597119680,0.00284212,3122.9,3122.3,0.128]
[1642597119927,0.128,3122.8,3122.3,0.128]
[1642597120122,0.13027369,3122.8,3122.3,0.128]
[1642597120323,0.00170527,3122.7,3122.3,0.128]
[1642597120724,0.00113685,3122.6,3122.3,1.65698024]
[1642597120922,0.00113685,3122.6,3122.5,2.20529431]
[1642597121124,0.00284212,3122.9,3122.5,3.30594431]
[1642597121322,0.00113685,3122.6,3122.5,3.30594431]
[1642597121524,0.00227369,3122.8,3122.5,3.30594431]
[1642597121724,0.00113685,3122.6,3122.5,3.30594431]
[1642597121929,0.00170527,3122.7,3122.5,6.0189387]
[1642597122125,1.3444,3123.4,3122.5,6.0189387]
[1642597122126,0.00113685,3122.6,3122.5,4.60594431]
[1642597122325,0.00113685,3122.6,3122.5,3.30594431]
[1642597122931,0.00113685,3122.6,3122.5,7.42131258]
[1642597123131,0.00113685,3122.6,3122.5,11.38231258]
[1642597123567,0.00113685,3122.6,3122.5,14.46021258]
[1642597123768,0.00113685,3122.6,3122.5,15.64581258]
[1642597125872,0.00113685,3122.6,3122.5,12.14581258]
[1642597126680,0.00113685,3122.6,3122.5,8.86944431]
[1642597127075,0.00113685,3122.6,3122.5,8.56944431]
[1642597127333,0.00113685,3122.6,3122.5,8.86944431]
[1642597127732,0.00113685,3122.6,3122.5,5.79154431]
[1642597128330,0.00113685,3122.6,3122.5,4.60594431]
[1642597128929,0.00113685,3122.6,3122.5,7.17510687]
[1642597130631,0.00113685,3122.6,3122.5,6.87510687]
[1642597131268,0.00113685,3122.6,3122.5,7.17510687]
[1642597132173,0.00113685,3122.6,3122.5,6.87510687]
[1642597132577,0.00113685,3122.6,3122.5,4.30594431]
[1642597132780,0.00113685,3122.6,3122.5,4.60594431]
[1642597133677,0.00113685,3122.6,3122.5,4.30594431]
[1642597133876,0.00113685,3122.6,3122.5,4.80574215]
[1642597134275,0.00113685,3122.6,3122.5,5.10574215]
[1642597141781,0.00113685,3122.6,3122.5,1.30044784]
[1642597141984,0.00113685,3122.6,3122.5,0.49979784]
[1642597143240,0.00113685,3122.6,3122.5,0.79979784]
[1642597143440,0.00113685,3122.6,3122.5,2.94790795]
[1642597143738,0.00113685,3122.6,3122.5,0.79979784]
[1642597144938,2.15752945,3122.6,3122.5,0.79979784]
[1642597149592,2.58552945,3122.6,3122.0,4.057]
[1642597149852,2.58552945,3122.6,3122.0,0.128]
[1642597149853,2.1563926,3122.5,3122.0,0.128]
[1642597150044,2.2843926,3122.4,3122.1,0.57249068]
[1642597150241,1.04453685,3122.6,3122.1,0.00170527]
[1642597150242,2.1563926,3122.3,3122.1,0.00170527]
[1642597150442,6.6843926,3122.2,3122.0,0.128]
[1642597150642,2.1563926,3122.1,3122.0,0.128]
[1642597150839,2.1563926,3122.1,3122.0,0.69883391]
[1642597151045,2.1563926,3122.1,3122.0,0.7011076]
[1642597151446,2.2843926,3122.1,3122.0,0.13027369]
[1642597151843,6.7843926,3122.1,3122.0,0.13027369]
[1642597153574,2.2843926,3122.1,3122.0,0.13027369]
[1642597153775,2.5843926,3122.1,3122.0,0.13027369]
[1642597153978,2.4563926,3122.1,3122.0,0.13027369]
[1642597154777,6.1563926,3122.1,3122.0,0.13027369]
[1642597154976,2.1563926,3122.1,3122.0,0.13027369]
[1642597156878,4.8563926,3122.1,3122.0,0.13027369]
[1642597159726,8.7063926,3122.1,3122.0,0.13027369]
[1642597160730,8.9946926,3122.1,3122.0,0.13027369]
[1642597160931,11.51395541,3122.1,3122.0,0.13027369]
[1642597161177,8.99161795,3122.1,3122.0,0.13027369]
[1642597163580,8.7063926,3122.1,3122.0,0.13027369]
[1642597163984,9.0063926,3122.1,3122.0,0.13027369]
[1642597164683,8.7063926,3122.1,3122.0,0.13027369]
[1642597164923,4.8563926,3122.1,3122.0,0.13027369]
[1642597166328,4.8563926,3122.1,3120.9,5.59858]
[1642597166329,0.8010915,3121.8,3120.9,3.1956]
[1642597166532,0.07770585,3121.9,3120.9,3.1956]
[1642597166533,2.36013689,3121.7,3120.9,3.4956]
[1642597166726,2.1563926,3121.6,3121.0,0.00568424]
[1642597166926,0.80124,3121.6,3121.0,0.00568424]
[1642597168329,1.6023837,3121.6,3121.0,0.00568424]
[1642597168581,2.03394516,3121.5,3121.0,0.00568424]
[1642597169878,0.1603,3121.4,3120.8,0.00682108]
[1642597170081,2.83517726,3121.3,3120.8,0.00682108]
[1642597170278,2.16194516,3121.2,3120.8,0.00682108]
[1642597170478,0.128,3121.2,3120.6,0.00795793]
[1642597170680,0.128,3121.2,3120.5,0.00852636]
[1642597170881,0.9292321,3121.3,3120.5,0.00852636]
[1642597171684,2.03328298,3121.2,3120.5,0.00852636]
[1642597171882,2.85878298,3121.2,3120.5,0.00852636]
[1642597172083,0.8255,3121.2,3120.5,0.30852636]
[1642597172528,0.8255,3121.2,3120.6,0.30795793]
[1642597172928,0.8255,3121.2,3120.7,0.00738951]
[1642597173328,0.1603,3121.1,3120.7,0.00738951]
[1642597173728,0.1603,3121.1,3120.4,0.00909478]
[1642597174529,0.8255,3121.2,3120.4,0.00909478]
[1642597174731,1.0896112,3121.1,3120.4,0.00909478]
[1642597174932,3.12194626,3121.1,3120.4,0.00909478]
[1642597175132,2.03233506,3121.0,3120.4,0.00909478]
[1642597175332,0.128,3120.9,3120.4,0.00909478]
[1642597175534,0.128,3120.9,3120.1,0.01080005]
[1642597175535,0.1603,3120.8,3120.1,0.01080005]
[1642597175732,0.128,3120.7,3120.1,0.01080005]
[1642597176999,0.128,3120.9,3120.1,0.01080005]
[1642597177799,0.1603,3120.8,3120.1,0.01080005]
[1642597178000,0.96171,3120.8,3120.1,0.01080005]
[1642597178601,0.1603,3120.8,3120.1,0.01080005]
[1642597178802,2.02482011,3120.7,3120.1,0.01080005]
[1642597179004,0.7493,3120.6,3120.1,0.01080005]
[1642597179201,0.7493,3120.6,3119.8,0.01250532]
[1642597179400,0.7493,3120.6,3119.4,1.64814602]
[1642597179401,0.7493,3120.6,3119.6,0.01364217]
[1642597179604,0.7493,3120.6,3119.5,2.89254627]
[1642597179605,1.7493,3120.6,3119.5,2.89254627]
[1642597179830,1.7493,3120.6,3119.6,0.01364217]
[1642597180429,0.80154,3120.4,3119.6,0.01364217]
[1642597180630,1.60304,3120.5,3119.6,0.01364217]
[1642597180631,0.929745,3120.3,3119.6,0.01364217]
[1642597180929,0.801545,3120.3,3119.6,0.01364217]
[1642597181129,0.961845,3120.3,3119.6,0.01364217]
[1642597181530,1.763415,3120.3,3119.6,0.01364217]
[1642597182136,0.1282,3120.2,3119.6,0.01364217]
[1642597182533,0.80162,3120.1,3119.6,0.01364217]
[1642597182934,0.801598,3120.0,3119.6,0.01364217]
[1642597183334,0.2885,3120.2,3119.6,0.01364217]
[1642597183781,0.2885,3120.2,3119.5,0.01421059]
[1642597184580,1.0900533,3120.2,3119.5,0.01421059]
[1642597185483,0.2885,3120.2,3119.5,0.01421059]
[1642597186884,1.2394,3120.4,3119.5,3.58926809]
[1642597187087,1.2394,3120.4,3119.6,0.58963002]
[1642597187335,1.2394,3120.4,3119.7,3.0020662]
[1642597187529,1.2394,3120.4,3119.8,0.59648795]
[1642597187729,1.2394,3120.4,3119.9,2.59701686]
[1642597187931,1.2394,3120.4,3119.9,0.8132369]
[1642597188130,0.1603,3120.8,3120.0,0.01136847]
[1642597188531,0.1603,3120.8,3120.2,1.34242112]
[1642597188732,0.1603,3120.8,3120.2,1.64242112]
[1642597188931,0.1603,3120.8,3120.3,0.0096632]
[1642597189133,0.128,3120.7,3120.3,0.0096632]
[1642597189533,0.128,3120.7,3120.0,0.01136847]
[1642597190135,0.128,3120.7,3120.1,1.2654435]
[1642597190335,0.128,3120.7,3120.1,1.5654435]
[1642597190538,0.128,3120.7,3120.2,0.01023163]
[1642597196038,0.128,3120.7,3120.0,0.01136847]
[1642597196645,0.128,3120.7,3120.1,0.61948858]
[1642597196845,0.1603,3120.6,3120.1,0.61948858]
[1642597197046,0.1603,3120.6,3120.4,1.83684044]
[1642597197445,0.1603,3120.6,3120.5,0.00852636]
[1642597199280,1.3722,3121.1,3120.5,2.56962611]
[1642597199480,1.2119,3121.1,3120.5,2.56962611]
[1642597199678,3.061,3121.3,3120.6,0.00795793]
[1642597199878,1.2034,3121.8,3121.3,1.39177163]
[1642597200077,5.17879224,3121.9,3121.3,1.39177163]
[1642597200276,5.17879224,3121.9,3121.7,2.10883729]
[1642597200277,0.29409224,3121.9,3121.7,2.10883729]
[1642597200484,0.1603,3121.8,3121.7,2.10883729]
[1642597201078,0.16609224,3121.9,3121.7,2.10883729]
[1642597201278,0.16609224,3121.9,3121.7,2.40883729]
[1642597202178,0.00383612,3121.8,3121.7,2.40883729]
[1642597204832,0.00383612,3121.8,3121.7,5.05369965]
[1642597205537,0.00383612,3121.8,3121.7,6.78891112]
[1642597206385,0.2883,3123.0,3121.8,6.55]
[1642597206591,0.128,3123.2,3122.9,1.49800517]
[1642597206788,1.56874172,3123.5,3123.0,2.69950289]
[1642597206987,4.093,3123.6,3122.9,1.49800517]
[1642597206988,0.128,3123.6,3122.9,1.49800517]
[1642597207187,0.00625265,3123.1,3122.9,1.79800517]
[1642597207388,0.00625265,3123.1,3123.0,1.74929595]
[1642597207589,0.128,3123.6,3123.0,0.3]
[1642597207990,0.128,3123.6,3122.6,3.4124]
[1642597207991,0.16882635,3123.5,3122.6,3.4124]
[1642597208197,0.128,3123.4,3122.6,3.4124]
[1642597208490,0.1676895,3123.3,3122.3,2.56081563]
[1642597208690,0.92875,3123.2,3122.3,2.86081563]
[1642597208892,0.8007972,3123.0,3122.3,0.3]
[1642597209090,0.128,3122.9,3122.1,0.3]
[1642597209290,0.128,3122.9,3122.0,4.0359]
[1642597209291,0.02100601,3122.8,3122.0,4.0359]
[1642597209489,0.02100601,3122.6,3122.0,0.3]
[1642597209933,0.00284211,3122.5,3121.8,1.0]
[1642597210333,0.00227369,3122.4,3121.8,1.0]
[1642597210735,0.80095,3122.5,3121.8,1.0]
[1642597210736,0.00170527,3122.3,3121.8,1.0]
[1642597210931,0.00170527,3122.3,3121.7,3.0024]
[1642597211130,0.00113684,3122.2,3121.7,3.0024]
[1642597211333,0.00113684,3122.2,3121.8,0.00113685]
[1642597211532,0.00227369,3122.4,3121.8,0.00113685]
[1642597211732,0.128,3122.3,3121.8,0.00113685]
[1642597211933,0.128,3122.3,3121.5,0.00284212]
[1642597211934,0.12970527,3122.3,3121.5,0.00284212]
[1642597212132,0.00113684,3122.2,3121.6,0.80091]
[1642597212534,0.13027369,3122.4,3121.7,2.08572559]
[1642597212735,0.1603,3122.3,3121.7,0.00170527]
[1642597212937,0.128,3122.2,3121.7,0.00170527]
[1642597213133,0.12913684,3122.2,3121.7,0.00170527]
[1642597213642,0.12913684,3122.2,3121.6,0.0022737]
[1642597213828,0.9213,3122.1,3121.6,0.0022737]
[1642597214025,0.9213,3122.1,3121.5,0.00284212]
[1642597214026,0.128,3122.0,3121.5,0.00284212]
[1642597214225,0.128,3122.0,3121.2,0.00454739]
[1642597214226,0.589,3122.0,3121.2,0.00454739]
[1642597214629,0.02100601,3121.6,3121.2,0.00454739]
[1642597214830,0.02100601,3121.4,3121.2,0.00454739]
[1642597215732,0.02100601,3121.4,3121.0,0.00568424]
[1642597216130,0.14900601,3121.4,3120.7,0.00738951]
[1642597218539,0.1603,3121.3,3120.7,0.00738951]
[1642597218736,0.14900601,3121.4,3120.7,0.00738951]
[1642597219438,0.1603,3121.3,3120.7,0.00738951]
[1642597219637,0.14900601,3121.4,3120.7,0.00738951]
[1642597219839,0.02100601,3121.0,3120.7,0.00738951]
[1642597220237,0.02100601,3120.8,3120.7,0.00738951]
[1642597221102,0.18130601,3120.8,3120.7,0.00738951]
[1642597221702,0.02100601,3120.8,3120.6,0.80116]
[1642597222104,0.02100601,3120.8,3120.7,2.55738951]
[1642597222703,0.02100601,3120.8,3120.7,5.1161237]
[1642597222905,0.02100601,3120.8,3120.7,8.04774476]
[1642597223103,0.02100601,3120.8,3120.7,5.45944951]
[1642597223302,0.02100601,3120.8,3120.7,8.01483735]
[1642597223504,0.02100601,3120.8,3120.7,5.45944951]
[1642597223707,0.02100601,3120.8,3120.7,8.05663439]
[1642597223901,0.02100601,3120.8,3120.7,8.07980399]
[1642597224302,0.02100601,3120.8,3120.7,3.85738951]
[1642597224947,0.02100601,3120.8,3120.7,2.55738951]
[1642597225146,0.04201202,3120.8,3120.7,2.55738951]
[1642597227747,0.04201202,3120.8,3120.7,0.00738951]
[1642597228348,0.04201202,3120.8,3120.4,0.00909478]
[1642597228587,0.02100601,3120.8,3120.3,0.0096632]
[1642597228994,0.02100601,3120.5,3120.4,4.05]
[1642597229389,0.02100601,3120.5,3120.4,4.87335962]
[1642597230592,0.04201202,3120.5,3120.4,4.87335962]
[1642597230993,0.04201202,3120.5,3120.4,6.17335962]
[1642597231995,0.04201202,3120.5,3120.4,4.87335962]
[1642597232195,0.04201202,3120.5,3120.4,6.32349903]
[1642597232461,0.04201202,3120.5,3120.4,6.62349903]
[1642597233964,0.8010636,3121.7,3120.5,6.85]
[1642597234170,1.7302281,3121.8,3121.4,1.5262148]
[1642597234171,1.84612455,3121.6,3121.4,1.5262148]
[1642597234364,0.128,3122.0,3120.7,0.128]
[1642597234565,0.128,3122.0,3121.5,0.00284212]
[1642597234566,1.85914266,3121.9,3121.5,0.00284212]
[1642597234764,1.85914266,3121.9,3120.9,2.8656367]
[1642597234966,1.85914266,3121.9,3121.1,1.60188]
[1642597235163,1.85914266,3121.9,3121.1,1.90188]
[1642597235365,1.85914266,3121.9,3121.2,0.00454739]
[1642597235565,0.128,3121.8,3121.2,0.00454739]
[1642597235764,3.8851,3122.1,3121.2,0.00454739]
[1642597235765,1.85914266,3121.7,3121.2,0.00454739]
[1642597235964,0.128,3122.0,3121.2,0.80554739]
[1642597236189,1.85985213,3121.9,3121.2,3.365955]
[1642597236391,1.85985213,3121.9,3121.3,0.00397897]
[1642597236695,1.85985213,3121.8,3121.3,0.00397897]
[1642597236892,1.85985213,3121.7,3121.3,0.00397897]
[1642597237091,0.128,3122.1,3121.2,0.00454739]
[1642597237290,1.86030758,3122.0,3121.2,0.00454739]
[1642597237494,1.86030758,3122.0,3121.2,0.80554739]
[1642597237894,1.86030758,3122.0,3121.3,0.00397897]
[1642597237895,2.66130358,3122.0,3121.3,0.00397897]
[1642597238095,1.86030758,3121.9,3121.3,0.00397897]
[1642597238294,1.86030758,3121.8,3121.2,0.00454739]
[1642597238496,1.86030758,3121.7,3121.2,0.00454739]
[1642597238697,1.86030758,3121.6,3121.2,2.09876405]
[1642597238895,0.128,3122.1,3121.2,2.09876405]
[1642597239098,0.128,3122.1,3121.3,0.00397897]
[1642597239099,2.66171592,3122.0,3121.3,0.00397897]
[1642597239301,1.98872352,3121.9,3121.3,0.00397897]
[1642597239497,1.86072352,3121.8,3121.3,0.00397897]
[1642597241169,0.128,3121.9,3121.3,0.00397897]
[1642597241466,1.86283194,3121.8,3121.3,0.00397897]
[1642597242672,1.86283194,3121.8,3121.4,1.35488476]
[1642597242871,1.86283194,3121.8,3121.4,2.15585476]
[1642597243072,1.86283194,3121.8,3121.5,0.00284212]
[1642597244593,1.86283194,3121.7,3121.5,0.00284212]
[1642597244794,1.86283194,3121.6,3121.5,0.80376212]
[1642597244999,1.86283194,3121.9,3121.5,3.42951205]
[1642597245300,1.86283194,3121.8,3121.6,0.0022737]
[1642597245601,0.128,3122.3,3121.7,1.52826668]
[1642597245799,6.99259997,3122.7,3121.8,2.89115264]
[1642597245800,1.86998166,3122.2,3121.8,2.89115264]
[1642597246002,1.86998166,3122.1,3121.8,3.99198264]
[1642597246300,0.00341054,3122.6,3122.2,5.80218004]
[1642597246501,0.00341054,3122.6,3122.3,3.07572687]
[1642597246698,1.87228914,3122.9,3122.3,4.07572687]
[1642597246904,1.87228914,3122.9,3122.3,4.87643687]
[1642597247098,0.00341054,3122.6,3122.3,4.87643687]
[1642597247343,0.00341054,3122.6,3122.4,1.77574732]
[1642597247549,0.00284211,3122.5,3122.4,3.87214732]
[1642597247747,0.00284211,3122.5,3122.4,6.86633065]
[1642597248548,0.00284211,3122.5,3122.4,7.16757065]
[1642597250353,0.00284211,3122.5,3122.4,8.46757065]
[1642597251220,0.00284211,3122.5,3122.4,5.47338732]
[1642597251920,0.00284211,3122.5,3122.4,8.0784061]
[1642597252322,0.00284211,3122.5,3122.4,6.7784061]
[1642597252521,0.00284211,3122.5,3122.4,7.0784061]
[1642597252721,0.00284211,3122.5,3122.4,4.17338732]
[1642597252922,0.00284211,3122.5,3122.4,2.57214732]
[1642597253623,0.00284211,3122.5,3122.4,3.87214732]
[1642597253824,0.00284211,3122.5,3122.4,0.7964]
[1642597254124,0.00284211,3122.5,3122.2,2.25292004]
[1642597254523,0.00227369,3122.4,3122.2,2.25292004]
[1642597254940,1.87498981,3122.8,3122.2,2.25292004]
[1642597254941,0.00170527,3122.3,3122.2,4.41823017]
[1642597255147,0.00170527,3122.3,3122.2,5.71823017]
[1642597256746,0.00170527,3122.3,3122.2,8.4638402]
[1642597256951,0.00170527,3122.3,3122.2,9.26825993]
[1642597257149,0.00170527,3122.3,3122.2,10.02925993]
[1642597257548,3.1161,3123.8,3123.2,1.35769635]
[1642597257549,1.87562892,3123.4,3123.2,1.35769635]
[1642597257750,0.128,3123.7,3123.2,1.35769635]
[1642597257751,1.87562892,3123.3,3123.2,1.35769635]
[1642597257952,0.00625266,3123.4,3123.2,1.35769635]
[1642597258148,1.87562892,3123.3,3123.2,1.35769635]
[1642597258348,0.00568423,3123.3,3123.2,1.35769635]
[1642597258591,0.00568423,3123.3,3123.2,3.90769635]
[1642597258796,0.00568423,3123.3,3123.2,6.45689316]